bitfinex-derivatives/quotes_BTCF0:USTF0_20241104
["timestamp","ask_amount","ask_price","bid_price","bid_amount"]
[1730703283224,0.11007238,69194.0,69193.0,0.100308]
[1730703283907,0.11007238,69194.0,69193.0,0.091308]
[1730703284109,0.11107238,69194.0,69193.0,0.077308]
[1730703284711,0.11207238,69194.0,69193.0,0.072308]
[1730703285108,0.074307,69194.0,69193.0,0.072308]
[1730703285726,0.074307,69194.0,69189.0,0.3608]
[1730703285727,0.07231,69191.0,69189.0,0.072312]
[1730703287324,0.07231,69191.0,69189.0,0.086312]
[1730703287625,0.072311,69190.0,69189.0,0.086312]
[1730703288025,0.072311,69190.0,69189.0,0.090312]
[1730703288919,0.072311,69190.0,69189.0,0.018]
[1730703289619,0.072311,69190.0,69189.0,0.006]
[1730703289920,0.072311,69190.0,69189.0,0.02]
[1730703290121,0.072311,69190.0,69189.0,0.014]
[1730703290523,0.072311,69190.0,69187.0,0.072314]
[1730703290524,0.072313,69188.0,69187.0,0.072314]
[1730703292818,0.072313,69188.0,69187.0,0.007]
[1730703293225,0.0374688,69188.0,69183.0,0.00216795]
[1730703293428,0.072313,69188.0,69187.0,0.011]
[1730703294031,0.072313,69188.0,69187.0,0.006]
[1730703294336,0.001,69188.0,69183.0,0.00216795]
[1730703294632,0.072318,69184.0,69183.0,0.01116795]
[1730703295529,0.09564942,69188.0,69185.0,0.072316]
[1730703295926,0.09564942,69188.0,69187.0,0.001]
[1730703296520,0.09464942,69188.0,69185.0,0.072316]
[1730703297529,0.09119747,69186.0,69185.0,0.072316]
[1730703298226,0.09119747,69186.0,69185.0,0.077316]
[1730703299236,0.09119747,69186.0,69185.0,0.084316]
[1730703299640,0.16351247,69186.0,69185.0,0.072316]
[1730703299842,0.16351247,69186.0,69185.0,0.100316]
[1730703304435,0.20116497,69186.0,69185.0,0.100316]
[1730703307146,0.16351247,69186.0,69185.0,0.100316]
[1730703313947,0.16351247,69186.0,69185.0,0.028]
[1730703315153,0.20123656,69186.0,69185.0,0.028]
[1730703316956,0.2012268,69186.0,69185.0,0.028]
[1730703320450,0.24507876,69186.0,69185.0,0.028]
[1730703320942,0.2012268,69186.0,69185.0,0.028]
[1730703324254,0.29242427,69186.0,69185.0,0.028]
[1730703326954,0.29252968,69186.0,69185.0,0.028]
[1730703328250,0.29237902,69186.0,69185.0,0.028]
[1730703328454,0.72597902,69186.0,69185.0,0.028]
[1730703330263,0.7695194,69186.0,69185.0,0.028]
[1730703330562,1.1303194,69186.0,69185.0,0.028]
[1730703331259,1.1799332,69186.0,69185.0,0.028]
[1730703331763,1.08677902,69186.0,69185.0,0.028]
[1730703332358,1.18561902,69186.0,69185.0,0.028]
[1730703333162,1.27681649,69186.0,69181.0,0.03613708]
[1730703333351,0.34591241,69182.0,69181.0,0.03613708]
[1730703333557,0.47658038,69182.0,69181.0,0.03613708]
[1730703333756,0.91022038,69182.0,69181.0,0.03613708]
[1730703333960,0.81902291,69182.0,69181.0,0.03613708]
[1730703334257,0.38538291,69182.0,69181.0,0.03613708]
[1730703334460,0.38538291,69182.0,69181.0,0.05013708]
[1730703335062,0.38538291,69182.0,69181.0,0.06413708]
[1730703335559,0.38638291,69182.0,69181.0,0.06413708]
[1730703335760,0.33686769,69182.0,69181.0,0.06413708]
[1730703337157,0.29338402,69182.0,69181.0,0.06413708]
[1730703341570,0.25571494,69182.0,69181.0,0.06413708]
[1730703343366,0.29312159,69182.0,69181.0,0.06413708]
[1730703343963,0.39200159,69182.0,69181.0,0.06413708]
[1730703344478,0.3919899,69182.0,69181.0,0.06413708]
[1730703344864,0.7527899,69182.0,69181.0,0.06413708]
[1730703350871,0.79614673,69182.0,69181.0,0.06413708]
[1730703351264,0.7527899,69182.0,69181.0,0.06413708]
[1730703353868,0.75263552,69182.0,69181.0,0.06413708]
[1730703358780,0.75267886,69182.0,69181.0,0.06413708]
[1730703361088,0.79596001,69182.0,69181.0,0.06413708]
[1730703362072,0.69708001,69182.0,69181.0,0.06413708]
[1730703362271,0.79452001,69182.0,69181.0,0.06413708]
[1730703365175,0.71395494,69182.0,69181.0,0.06413708]
[1730703367276,0.65373509,69182.0,69181.0,0.06413708]
[1730703367482,0.75117509,69182.0,69181.0,0.06413708]
[1730703368281,0.072332,69170.0,69169.0,0.0656687]
[1730703368479,0.25472694,69170.0,69169.0,0.0656687]
[1730703369180,0.33426521,69170.0,69169.0,0.0021687]
[1730703369583,0.33526521,69170.0,69169.0,0.0031687]
[1730703370687,0.33626521,69170.0,69169.0,0.0051687]
[1730703371785,0.35906975,69170.0,69169.0,0.0051687]
[1730703372086,0.31634287,69170.0,69169.0,0.0051687]
[1730703374087,0.67714287,69170.0,69169.0,0.0051687]
[1730703375488,0.64033148,69170.0,69169.0,0.0051687]
[1730703376290,0.64033148,69170.0,69169.0,0.003]
[1730703390405,0.67694007,69170.0,69169.0,0.003]
[1730703394795,0.67696792,69170.0,69169.0,0.003]
[1730703394996,0.77436792,69170.0,69169.0,0.003]
[1730703404206,0.77438891,69170.0,69169.0,0.003]
[1730703404406,0.67698891,69170.0,69169.0,0.003]
[1730703404706,0.77438891,69170.0,69169.0,0.003]
[1730703409111,0.77437596,69170.0,69169.0,0.003]
[1730703409602,0.8169166,69170.0,69169.0,0.003]
[1730703411514,0.59198102,69170.0,69169.0,0.003]
[1730703411817,0.61084649,69170.0,69169.0,0.003]
[1730703412113,0.65345655,69170.0,69169.0,0.003]
[1730703412304,0.61084649,69170.0,69169.0,0.003]
[1730703413611,0.61091093,69170.0,69169.0,0.003]
[1730703414809,0.57420201,69170.0,69169.0,0.003]
[1730703415318,0.61091302,69170.0,69169.0,0.003]
[1730703415499,0.57420201,69170.0,69169.0,0.003]
[1730703415903,0.61091303,69170.0,69169.0,0.003]
[1730703416117,0.51351303,69170.0,69169.0,0.003]
[1730703416313,0.61091303,69170.0,69169.0,0.003]
[1730703419710,0.61094594,69170.0,69169.0,0.003]
[1730703419919,0.77447541,69170.0,69169.0,0.003]
[1730703420106,0.68327794,69170.0,69169.0,0.003]
[1730703420307,0.81707395,69170.0,69169.0,0.003]
[1730703421013,0.77447541,69170.0,69169.0,0.003]
[1730703421221,0.68327794,69170.0,69169.0,0.003]
[1730703423114,0.68354922,69170.0,69169.0,0.003]
[1730703423315,0.68354826,69170.0,69169.0,0.003]
[1730703424720,0.72648379,69170.0,69169.0,0.003]
[1730703424914,0.68354826,69170.0,69169.0,0.003]
[1730703425420,0.72652933,69170.0,69169.0,0.003]
[1730703426224,0.68354826,69170.0,69169.0,0.003]
[1730703426432,0.68354826,69170.0,69169.0,0.075333]
[1730703427925,0.68355028,69170.0,69169.0,0.075333]
[1730703428426,0.64653401,69170.0,69169.0,0.075333]
[1730703429122,0.47680201,69170.0,69169.0,0.075333]
[1730703430117,0.57416201,69170.0,69169.0,0.075333]
[1730703432328,0.3608,69187.0,69183.0,0.072319]
[1730703432526,0.0375108,69186.0,69183.0,0.072319]
[1730703432721,0.12870827,69185.0,69183.0,0.072319]
[1730703432923,0.09119747,69185.0,69183.0,0.072319]
[1730703433528,0.01316899,69184.0,69183.0,0.072319]
[1730703434128,0.03532703,69184.0,69183.0,0.072319]
[1730703434323,0.01316899,69184.0,69183.0,0.072319]
[1730703435625,0.01316899,69184.0,69183.0,0.165319]
[1730703437630,0.01316899,69184.0,69183.0,0.598959]
[1730703446432,0.01316899,69184.0,69183.0,0.165319]
[1730703446732,0.01316899,69184.0,69183.0,0.598959]
[1730703447238,0.01316899,69184.0,69183.0,0.165319]
[1730703455240,0.01316899,69184.0,69183.0,0.102819]
[1730703455443,0.01316899,69184.0,69183.0,0.072319]
[1730703462231,0.05139445,69184.0,69183.0,0.072319]
[1730703465234,0.01316899,69184.0,69183.0,0.072319]
[1730703465437,0.01316899,69184.0,69178.0,0.09119747]
[1730703465438,0.10436646,69184.0,69178.0,0.09119747]
[1730703465840,0.10436646,69184.0,69178.0,0.072324]
[1730703465841,0.09119747,69180.0,69178.0,0.072324]
[1730703466038,0.10081235,69179.0,69178.0,0.072324]
[1730703466647,0.0628,69179.0,69178.0,0.16452147]
[1730703467743,0.0628,69179.0,69178.0,0.16652147]
[1730703468247,0.0638,69179.0,69178.0,0.16652147]
[1730703468547,0.0648,69179.0,69178.0,0.16652147]
[1730703468740,0.0638,69179.0,69178.0,0.16452147]
[1730703468940,0.0638,69179.0,69178.0,0.16652147]
[1730703469342,0.0628,69179.0,69178.0,0.16652147]
[1730703471355,0.0628,69179.0,69178.0,0.16452147]
[1730703471568,0.0678,69179.0,69178.0,0.16452147]
[1730703471854,0.0748,69179.0,69178.0,0.16352147]
[1730703472052,0.0972966,69179.0,69178.0,0.16352147]
[1730703472755,0.0962966,69179.0,69178.0,0.16352147]
[1730703473955,0.0638966,69179.0,69178.0,0.16352147]
[1730703475651,0.0334966,69179.0,69178.0,0.16352147]
[1730703477252,0.011,69179.0,69178.0,0.16352147]
[1730703477457,0.011,69179.0,69178.0,0.25471894]
[1730703477756,0.011,69179.0,69178.0,0.16352147]
[1730703478156,0.011,69179.0,69178.0,0.68839894]
[1730703478355,0.011,69179.0,69178.0,0.59720147]
[1730703479346,0.011,69179.0,69178.0,0.68839894]
[1730703479856,0.011,69179.0,69178.0,0.59720147]
[1730703481350,0.011,69179.0,69178.0,0.68839894]
[1730703481546,0.011,69179.0,69178.0,0.59720147]
[1730703482155,0.011,69179.0,69178.0,0.16352147]
[1730703493456,0.04872757,69179.0,69178.0,0.16352147]
[1730703493855,0.04872757,69179.0,69167.0,0.09119747]
[1730703494052,0.16352747,69173.0,69172.0,0.07233]
[1730703494360,0.11005757,69173.0,69172.0,0.07233]
[1730703495562,0.11005757,69173.0,69170.0,0.45475747]
[1730703495563,0.03772757,69173.0,69170.0,0.45475747]
[1730703495766,0.17435857,69172.0,69170.0,0.45399747]
[1730703495961,0.136631,69172.0,69170.0,0.45399747]
[1730703496362,0.136631,69172.0,69170.0,0.3628]
[1730703496555,0.136631,69172.0,69170.0,0.3608]
[1730703496556,0.072331,69171.0,69170.0,0.3608]
[1730703496870,0.09724,69171.0,69164.0,0.00216842]
[1730703497053,0.072336,69167.0,69164.0,0.00216842]
[1730703497869,0.072336,69167.0,69164.0,0.00316842]
[1730703498060,0.16353447,69165.0,69164.0,0.00316842]
[1730703498463,0.16353447,69165.0,69164.0,0.00416842]
[1730703499863,0.16353447,69165.0,69164.0,0.00316842]
[1730703500061,0.16553447,69165.0,69164.0,0.00416842]
[1730703518679,0.26273447,69165.0,69164.0,0.00416842]
[1730703533084,0.29951369,69165.0,69164.0,0.00416842]
[1730703540591,0.26273447,69165.0,69164.0,0.00416842]
[1730703540782,0.29956012,69165.0,69164.0,0.00416842]
[1730703541093,0.26273447,69165.0,69164.0,0.00416842]
[1730703541591,0.171537,69165.0,69164.0,0.00416842]
[1730703545089,0.074337,69165.0,69164.0,0.00416842]
[1730703548283,0.11114854,69165.0,69164.0,0.00416842]
[1730703548889,0.11121752,69165.0,69164.0,0.00416842]
[1730703551796,0.11121752,69165.0,69164.0,0.07650642]
[1730703555291,0.074337,69165.0,69164.0,0.07650642]
[1730703560796,0.074337,69165.0,69164.0,0.00416842]
[1730703562315,0.074337,69165.0,69164.0,0.07650642]
[1730703563212,0.11146501,69165.0,69164.0,0.07650642]
[1730703570323,0.074337,69165.0,69164.0,0.07650642]
[1730703578432,0.11140573,69165.0,69164.0,0.07650642]
[1730703581828,0.1114123,69165.0,69164.0,0.07650642]
[1730703585332,0.074337,69165.0,69164.0,0.07650642]
[1730703590841,0.002,69165.0,69164.0,0.16553547]
[1730703591041,0.002,69165.0,69164.0,0.25673294]
[1730703591235,0.002,69165.0,69164.0,0.64261402]
[1730703591436,0.002,69165.0,69164.0,0.59929547]
[1730703591746,0.3608,69172.0,69171.0,0.072331]
[1730703591937,0.3608,69172.0,69171.0,0.16352847]
[1730703592134,0.39778937,69172.0,69171.0,0.16352847]
[1730703592839,0.39878937,69172.0,69171.0,0.16452847]
[1730703593045,0.3618,69172.0,69171.0,0.16452847]
[1730703594547,0.3628,69172.0,69171.0,0.16652847]
[1730703600552,0.3989418,69172.0,69171.0,0.16652847]
[1730703602252,0.44101715,69172.0,69171.0,0.16652847]
[1730703602660,0.3989418,69172.0,69171.0,0.16652847]
[1730703602860,0.44101648,69172.0,69171.0,0.16652847]
[1730703603359,0.44099238,69172.0,69171.0,0.16652847]
[1730703603548,0.4712718,69172.0,69171.0,0.16652847]
[1730703603743,0.4713348,69172.0,69171.0,0.16652847]
[1730703604749,0.1105348,69172.0,69171.0,0.16652847]
[1730703605053,0.0382048,69172.0,69171.0,0.16652847]
[1730703606661,0.002,69172.0,69171.0,0.16652847]
[1730703606852,0.3628,69172.0,69171.0,0.19942847]
[1730703607047,0.39911956,69172.0,69171.0,0.19942847]
[1730703607551,0.03831956,69172.0,69171.0,0.19942847]
[1730703608154,0.002,69172.0,69171.0,0.19942847]
[1730703616270,0.002,69172.0,69171.0,0.16652847]
[1730703616561,0.3628,69172.0,69171.0,0.16652847]
[1730703616768,0.43513,69172.0,69171.0,0.16652847]
[1730703617164,0.43513,69172.0,69171.0,0.003]
[1730703618768,0.56240352,69172.0,69171.0,0.003]
[1730703621769,0.65928352,69172.0,69171.0,0.003]
[1730703622177,0.68251239,69172.0,69171.0,0.003]
[1730703623576,0.72367579,69172.0,69171.0,0.003]
[1730703626463,0.68251239,69172.0,69171.0,0.003]
[1730703628377,0.7235395,69172.0,69171.0,0.003]
[1730703629573,0.68251239,69172.0,69171.0,0.003]
[1730703632182,0.64643634,69172.0,69171.0,0.003]
[1730703637485,0.64635634,69172.0,69171.0,0.003]
[1730703637979,0.64635634,69172.0,69171.0,0.09419747]
[1730703637980,0.55515887,69172.0,69171.0,0.09419747]
[1730703638578,0.59041301,69172.0,69171.0,0.09419747]
[1730703638773,0.59041301,69172.0,69171.0,0.003]
[1730703639488,0.68161048,69172.0,69171.0,0.003]
[1730703639785,0.58481048,69172.0,69171.0,0.003]
[1730703640480,0.58479473,69172.0,69171.0,0.003]
[1730703641276,0.6256922,69172.0,69171.0,0.003]
[1730703641991,0.62569708,69172.0,69171.0,0.003]
[1730703644684,0.58479473,69172.0,69171.0,0.003]
[1730703645092,0.62568548,69172.0,69171.0,0.003]
[1730703645689,0.58477971,69172.0,69171.0,0.003]
[1730703649686,0.58484694,69172.0,69171.0,0.003]
[1730703652596,0.94564694,69172.0,69171.0,0.003]
[1730703652898,0.98658366,69172.0,69171.0,0.003]
[1730703653896,1.03321271,69172.0,69171.0,0.003]
[1730703655783,1.09501271,69172.0,69171.0,0.003]
[1730703656695,1.18621018,69172.0,69171.0,0.003]
[1730703656998,1.18606107,69172.0,69171.0,0.003]
[1730703657185,1.0948636,69172.0,69171.0,0.003]
[1730703657386,1.18606107,69172.0,69171.0,0.003]
[1730703657695,1.0948636,69172.0,69171.0,0.003]
[1730703658201,1.61978107,69172.0,69171.0,0.003]
[1730703658700,1.5285836,69172.0,69171.0,0.003]
[1730703658900,1.52836334,69172.0,69171.0,0.003]
[1730703659988,1.67308147,69172.0,69171.0,0.003]
[1730703660298,1.09464334,69172.0,69171.0,0.003]
[1730703660684,1.04815102,69172.0,69171.0,0.003]
[1730703662102,1.04794279,69172.0,69171.0,0.003]
[1730703662298,1.08301213,69172.0,69171.0,0.003]
[1730703662908,1.02121213,69172.0,69171.0,0.003]
[1730703663496,1.07729499,69172.0,69171.0,0.003]
[1730703664286,0.98049499,69172.0,69171.0,0.003]
[1730703664494,1.07721499,69172.0,69171.0,0.003]
[1730703665008,1.04214567,69172.0,69171.0,0.003]
[1730703665496,0.95094819,69172.0,69171.0,0.003]
[1730703665698,0.95094819,69172.0,69171.0,0.0333]
[1730703666101,0.85422819,69172.0,69171.0,0.0333]
[1730703666696,0.85449009,69172.0,69171.0,0.0333]
[1730703667803,0.89551029,69172.0,69171.0,0.0333]
[1730703670307,0.89551029,69172.0,69171.0,0.003]
[1730703670906,0.99223029,69172.0,69171.0,0.003]
[1730703672707,0.99223029,69172.0,69171.0,0.03914231]
[1730703675915,0.95121009,69172.0,69171.0,0.03914231]
[1730703676111,1.04240756,69172.0,69171.0,0.03914231]
[1730703676420,0.95121009,69172.0,69171.0,0.03914231]
[1730703677215,1.01541009,69172.0,69171.0,0.03914231]
[1730703678710,1.10660756,69172.0,69171.0,0.03914231]
[1730703678912,1.05682369,69172.0,69171.0,0.03914231]
[1730703680621,1.05706915,69172.0,69171.0,0.03914231]
[1730703680817,1.03384028,69172.0,69171.0,0.03914231]
[1730703681010,1.12503775,69172.0,69171.0,0.03914231]
[1730703681207,1.03384028,69172.0,69171.0,0.03914231]
[1730703682214,1.12503775,69172.0,69171.0,0.03914231]
[1730703682524,1.03384028,69172.0,69171.0,0.03914231]
[1730703682919,0.99247638,69172.0,69171.0,0.03914231]
[1730703684718,1.03387799,69172.0,69171.0,0.03914231]
[1730703686721,1.03390254,69172.0,69171.0,0.03914231]
[1730703688322,1.03390254,69172.0,69159.0,0.0939]
[1730703688323,0.072343,69160.0,69159.0,0.0614]
[1730703688518,0.65671567,69160.0,69159.0,0.0614]
[1730703689422,0.07235,69153.0,69148.0,0.0432485]
[1730703689626,0.072359,69144.0,69141.0,0.05775806]
[1730703689925,0.072363,69141.0,69137.0,0.0627]
[1730703690126,0.09119747,69139.0,69137.0,0.0627]
[1730703690923,0.03455495,69138.0,69137.0,0.0627]
[1730703691321,0.03455495,69138.0,69137.0,0.0637]
[1730703691322,0.1068714,69138.0,69137.0,0.0637]
[1730703692721,0.1068714,69138.0,69137.0,0.0627]
[1730703692921,0.1078714,69138.0,69137.0,0.0627]
[1730703693226,0.1088714,69138.0,69137.0,0.0627]
[1730703694022,0.074366,69138.0,69137.0,0.0627]
[1730703694225,0.10864216,69138.0,69137.0,0.0627]
[1730703694529,0.074366,69138.0,69137.0,0.0627]
[1730703698423,0.002,69138.0,69137.0,0.0627]
[1730703699129,0.36188,69141.0,69137.0,0.0627]
[1730703699327,0.3608,69141.0,69140.0,0.09119747]
[1730703700526,0.3618,69141.0,69140.0,0.09119747]
[1730703700719,0.434162,69141.0,69140.0,0.09119747]
[1730703702018,0.435162,69141.0,69140.0,0.09319747]
[1730703702720,0.434162,69141.0,69140.0,0.09319747]
[1730703702916,0.3628,69141.0,69140.0,0.25875794]
[1730703703327,0.3608,69152.0,69140.0,0.62027494]
[1730703703532,0.3608,69152.0,69151.0,0.16354947]
[1730703704325,0.07451674,69156.0,69151.0,0.09119747]
[1730703704524,0.07451674,69156.0,69147.0,0.0312]
[1730703704525,0.07451674,69156.0,69155.0,0.09119747]
[1730703705527,0.07451674,69156.0,69154.0,0.25474394]
[1730703705732,0.07451674,69156.0,69154.0,0.16354647]
[1730703706132,0.07451674,69156.0,69154.0,0.25474394]
[1730703706331,0.3608,69163.0,69154.0,0.25474394]
[1730703706332,0.072341,69162.0,69159.0,0.072343]
[1730703706533,0.072341,69162.0,69161.0,0.09119747]
[1730703706734,0.3608,69163.0,69161.0,0.16353847]
[1730703708136,0.3608,69163.0,69162.0,0.52495747]
[1730703708334,0.3608,69163.0,69162.0,0.43376]
[1730703709227,0.3688,69163.0,69162.0,0.43376]
[1730703709426,0.3778,69163.0,69162.0,0.57276737]
[1730703710729,0.3688,69163.0,69162.0,0.57276737]
[1730703710929,0.3778,69163.0,69162.0,0.57276737]
[1730703712729,0.3778,69163.0,69162.0,0.64510837]
[1730703715339,0.017,69163.0,69162.0,0.64510837]
[1730703716136,0.017,69163.0,69162.0,0.21134837]
[1730703716940,0.017,69163.0,69158.0,0.072344]
[1730703717335,0.0323,69162.0,69158.0,0.072344]
[1730703717846,0.072344,69159.0,69158.0,0.072344]
[1730703718036,0.0323,69162.0,69157.0,0.13900737]
[1730703718237,0.072345,69158.0,69157.0,0.13900737]
[1730703718431,0.0323,69162.0,69157.0,0.13900737]
[1730703718631,0.001,69163.0,69162.0,0.072341]
[1730703719237,0.3608,69166.0,69161.0,0.13900737]
[1730703719538,0.3608,69166.0,69165.0,0.072337]
[1730703720344,0.3608,69166.0,69161.0,0.13900737]
[1730703720532,0.3608,69166.0,69157.0,0.003]
[1730703720533,0.072344,69159.0,69157.0,0.14200737]
[1730703720733,0.072344,69159.0,69157.0,0.13900737]
[1730703721150,0.072345,69158.0,69157.0,0.13900737]
[1730703721351,0.07235,69153.0,69147.0,0.3608]
[1730703722043,0.07235,69153.0,69151.0,0.13900737]
[1730703722244,0.073345,69158.0,69157.0,0.003]
[1730703722955,0.3608,69160.0,69147.0,0.003]
[1730703722956,0.001,69153.0,69147.0,0.003]
[1730703723158,0.43415,69153.0,69147.0,0.003]
[1730703723445,0.072351,69152.0,69147.0,0.005]
[1730703723652,0.072355,69149.0,69147.0,0.005]
[1730703724341,0.072355,69149.0,69147.0,0.002]
[1730703724748,0.072355,69149.0,69146.0,0.13900737]
[1730703724942,0.072355,69149.0,69147.0,0.002]
[1730703725143,0.073355,69149.0,69147.0,0.005]
[1730703725745,0.073355,69149.0,69147.0,0.003]
[1730703726046,0.074355,69149.0,69147.0,0.005]
[1730703726440,0.002,69149.0,69147.0,0.005]
[1730703726757,0.072355,69148.0,69147.0,0.005]
[1730703728040,0.072355,69148.0,69147.0,0.003]
[1730703728249,0.074355,69148.0,69147.0,0.005]
[1730703729144,0.435155,69148.0,69147.0,0.005]
[1730703747369,0.868995,69148.0,69147.0,0.005]
[1730703748359,0.43388,69147.0,69126.0,0.0324]
[1730703748554,0.49980737,69134.0,69125.0,0.3921]
[1730703748755,0.59644737,69134.0,69125.0,0.3921]
[1730703748963,0.072376,69128.0,69125.0,0.3921]
[1730703749363,0.59644737,69134.0,69125.0,0.3921]
[1730703749551,0.072377,69127.0,69126.0,0.003]
[1730703750161,0.072377,69127.0,69125.0,0.39586]
[1730703750357,0.072377,69127.0,69125.0,0.3951]
[1730703750761,0.074377,69127.0,69126.0,0.003]
[1730703751071,0.002,69127.0,69126.0,0.003]
[1730703751562,0.001,69127.0,69126.0,0.003]
[1730703751767,0.002,69127.0,69126.0,0.003]
[1730703752677,0.002,69127.0,69125.0,0.39286]
[1730703752878,0.002,69127.0,69125.0,0.0313]
[1730703753079,0.001,69127.0,69125.0,0.0313]
[1730703753283,0.002,69127.0,69125.0,0.0313]
[1730703753780,0.001,69127.0,69125.0,0.0313]
[1730703754085,0.002,69127.0,69125.0,0.103679]
[1730703755371,0.074377,69127.0,69125.0,0.103679]
[1730703756272,0.072378,69126.0,69125.0,0.103679]
[1730703757679,0.073378,69126.0,69125.0,0.103679]
[1730703757884,0.074378,69126.0,69125.0,0.103679]
[1730703759180,0.074378,69126.0,69125.0,0.14692733]
[1730703763695,0.074378,69126.0,69125.0,0.103679]
[1730703764092,0.074378,69126.0,69125.0,0.14692733]
[1730703765489,0.074378,69126.0,69125.0,0.103679]
[1730703767398,0.074378,69126.0,69125.0,0.19495511]
[1730703770798,0.002,69126.0,69125.0,0.72023122]
[1730703771003,0.002,69126.0,69125.0,0.62895511]
[1730703771196,0.002,69126.0,69125.0,0.19495511]
[1730703771905,0.002,69126.0,69125.0,0.103679]
[1730703772702,0.074378,69126.0,69125.0,0.103679]
[1730703772913,0.07238,69124.0,69123.0,0.03692741]
[1730703773207,0.07238,69124.0,69123.0,0.03616741]
[1730703773408,0.16902,69124.0,69123.0,0.03616741]
[1730703773794,0.19932,69124.0,69123.0,0.03616741]
[1730703774297,0.20032,69124.0,69123.0,0.03616741]
[1730703775096,0.20132,69124.0,69123.0,0.03616741]
[1730703781017,0.23433351,69124.0,69123.0,0.03616741]
[1730703782612,0.2343792,69124.0,69123.0,0.03616741]
[1730703783013,0.2343792,69124.0,69123.0,0.07233482]
[1730703784015,0.59512325,69124.0,69123.0,0.07233482]
[1730703784516,0.59506769,69124.0,69123.0,0.07233482]
[1730703785305,0.60006769,69124.0,69123.0,0.07233482]
[1730703786106,0.60406769,69124.0,69123.0,0.07233482]
[1730703788107,0.57112,69124.0,69123.0,0.07233482]
[1730703791112,0.57108,69124.0,69123.0,0.07233482]
[1730703793712,0.44418,69124.0,69123.0,0.07233482]
[1730703793905,0.54078,69124.0,69123.0,0.07233482]
[1730703794404,0.44418,69124.0,69123.0,0.07233482]
[1730703794606,0.54078,69124.0,69123.0,0.07233482]
[1730703796618,0.54078,69124.0,69123.0,0.16361871]
[1730703796619,0.3718,69124.0,69123.0,0.16361871]
[1730703796811,0.3718,69124.0,69123.0,0.23599971]
[1730703797422,0.3718,69124.0,69123.0,0.14471582]
[1730703803123,0.40521864,69124.0,69123.0,0.14471582]
[1730703806517,0.3718,69124.0,69123.0,0.14471582]
[1730703808230,0.3718,69124.0,69123.0,0.28380596]
[1730703808231,0.40522084,69124.0,69123.0,0.28380596]
[1730703809220,0.3718,69124.0,69123.0,0.28380596]
[1730703809417,0.40523351,69124.0,69123.0,0.28380596]
[1730703811132,0.3718,69124.0,69123.0,0.28380596]
[1730703813530,0.011,69124.0,69123.0,0.28380596]
[1730703814830,0.011,69124.0,69123.0,1.07860596]
[1730703815031,0.00217054,69140.0,69139.0,0.072365]
[1730703815434,0.03660309,69140.0,69139.0,0.072365]
[1730703816240,0.05060309,69140.0,69139.0,0.072365]
[1730703816933,0.12296709,69140.0,69139.0,0.072365]
[1730703817132,0.05060309,69140.0,69136.0,0.0331]
[1730703817333,0.05060309,69140.0,69131.0,0.13909014]
[1730703817334,0.1636381,69137.0,69135.0,0.072368]
[1730703817530,0.1636381,69137.0,69136.0,0.072368]
[1730703817723,0.19770301,69137.0,69136.0,0.072368]
[1730703817928,0.072372,69133.0,69131.0,0.072372]
[1730703818224,0.072372,69133.0,69128.0,0.0912711]
[1730703818536,0.072372,69133.0,69132.0,0.072372]
[1730703819025,0.085372,69133.0,69132.0,0.072372]
[1730703819331,0.072372,69132.0,69131.0,0.002]
[1730703819837,0.072372,69132.0,69131.0,0.001]
[1730703820535,0.10598216,69132.0,69131.0,0.001]
[1730703820730,0.072372,69132.0,69126.0,0.072378]
[1730703820935,0.0316,69131.0,69126.0,0.072378]
[1730703821528,0.072374,69130.0,69126.0,0.072378]
[1730703822533,0.072374,69130.0,69126.0,0.076378]
[1730703822730,0.072374,69130.0,69126.0,0.077378]
[1730703824037,0.072374,69130.0,69126.0,0.073378]
[1730703824332,0.073374,69130.0,69126.0,0.077378]
[1730703824635,0.074374,69130.0,69126.0,0.076378]
[1730703824931,0.073374,69130.0,69126.0,0.072378]
[1730703825835,0.001,69130.0,69126.0,0.072378]
[1730703826042,0.072377,69127.0,69123.0,0.07233482]
[1730703826739,0.072377,69127.0,69123.0,0.14471582]
[1730703826934,0.07238,69125.0,69123.0,0.07233482]
[1730703827923,0.0319,69126.0,69123.0,0.07633482]
[1730703828128,0.07238,69124.0,69123.0,0.07933482]
[1730703829142,0.07238,69124.0,69123.0,0.07433482]
[1730703829440,0.07238,69124.0,69123.0,0.11350223]
[1730703830741,0.07338,69124.0,69123.0,0.11550223]
[1730703831242,0.07838,69124.0,69123.0,0.10950223]
[1730703831432,0.08338,69124.0,69123.0,0.10950223]
[1730703831934,0.07938,69124.0,69123.0,0.11250223]
[1730703832141,0.07338,69124.0,69123.0,0.11650223]
[1730703832935,0.07938,69124.0,69123.0,0.11350223]
[1730703833346,0.11275453,69124.0,69123.0,0.11350223]
[1730703833639,0.11675453,69124.0,69123.0,0.10950223]
[1730703833829,0.08338,69124.0,69123.0,0.10950223]
[1730703834029,0.08338,69124.0,69123.0,0.18188323]
[1730703834641,0.011,69124.0,69123.0,0.32097842]
[1730703835029,0.005,69124.0,69123.0,0.32397842]
[1730703836040,0.011,69124.0,69123.0,0.32097842]
[1730703837236,0.006,69124.0,69123.0,0.32097842]
[1730703837438,0.007,69124.0,69123.0,0.32597842]
[1730703837836,0.006,69124.0,69123.0,0.32097842]
[1730703838045,0.007,69124.0,69123.0,0.32597842]
[1730703838348,0.001,69124.0,69123.0,0.32497842]
[1730703838539,0.002,69124.0,69123.0,0.33097842]
[1730703839247,0.001,69124.0,69123.0,0.32497842]
[1730703839448,0.002,69124.0,69123.0,0.28315741]
[1730703840135,0.001,69124.0,69123.0,0.27715741]
[1730703840447,0.002,69124.0,69123.0,0.28315741]
[1730703840646,0.001,69124.0,69123.0,0.27815741]
[1730703840947,0.002,69124.0,69123.0,0.28315741]
[1730703841749,0.001,69124.0,69123.0,0.71115741]
[1730703841950,0.002,69124.0,69123.0,0.71715741]
[1730703842750,0.001,69124.0,69123.0,0.71115741]
[1730703842945,0.002,69124.0,69123.0,0.71715741]
[1730703843140,0.002,69124.0,69123.0,0.28315741]